lending/lending_fUSD_20240809
["ID","MTS","AMOUNT","RATE_DAILY","PERIOD"]
[334507042,1723170647924,-500.0,0.00024287,5]
[334507043,1723170647934,-500.0,0.00024287,5]
[334507044,1723170647944,-19443.35,0.00024287,5]
[334507045,1723170647953,-500.0,0.00024287,5]
[334507046,1723170647962,-500.0,0.00024287,5]
[334507047,1723170647972,-742.13,0.00024287,5]
[334507048,1723170647981,-554.45,0.00024287,5]
[334507049,1723170647990,-985.71,0.00024287,5]
[334507050,1723170648000,-3197.82,0.00024287,5]
[334507051,1723170648009,-500.0,0.00024287,5]
[334507052,1723170648018,-500.0,0.00024288,5]
[334507053,1723170648028,-500.0,0.00024288,5]
[334507054,1723170648037,-500.0,0.00024288,5]
[334507055,1723170648047,-500.0,0.00024288,5]
[334507056,1723170648056,-500.0,0.00024288,5]
[334507057,1723170648065,-291.19389589,0.00024288,5]
[334507058,1723170648075,-500.0,0.00024288,5]
[334507059,1723170648084,-500.0,0.00024288,5]
[334507060,1723170648094,-500.0,0.00024288,5]
[334507061,1723170648103,-506.17166809,0.00024288,5]
[334507062,1723170648113,-500.0,0.00024288,5]
[334507063,1723170648123,-500.0,0.00024288,5]
[334507064,1723170648132,-500.0,0.00024288,5]
[334507065,1723170648142,-500.0,0.00024288,5]
[334507066,1723170648152,-500.0,0.00024288,5]
[334507067,1723170648161,-500.0,0.00024288,5]
[334507068,1723170648171,-500.0,0.00024288,5]
[334507069,1723170648181,-500.0,0.00024288,5]
[334507070,1723170648191,-501.25859361,0.00024288,5]
[334507071,1723170648201,-500.0,0.00024288,5]
[334507072,1723170648210,-500.0,0.00024288,5]
[334507073,1723170648219,-500.0,0.00024288,5]
[334507074,1723170648229,-500.0,0.00024288,5]
[334507075,1723170648238,-580.98121278,0.00024288,5]
[334507076,1723170648247,-500.0,0.00024288,5]
[334507077,1723170648257,-500.0,0.00024288,5]
[334507078,1723170648267,-500.0,0.00024288,5]
[334507079,1723170648278,-500.0,0.00024288,5]
[334507080,1723170648288,-500.0,0.00024288,5]
[334507081,1723170648297,-500.0,0.00024288,5]
[334507082,1723170648306,-500.0,0.00024288,5]
[334507083,1723170648316,-500.0,0.00024288,5]
[334507084,1723170648325,-500.0,0.00024288,5]
[334507085,1723170648334,-500.0,0.00024288,5]
[334507086,1723170648344,-500.0,0.00024288,5]
[334507087,1723170648353,-500.0,0.00024288,5]
[334507088,1723170648363,-500.0,0.00024288,5]
[334507089,1723170648373,-500.0,0.00024288,2]
[334507090,1723170648388,-500.0,0.00024288,5]
[334507091,1723170648397,-501.14243565,0.00024288,5]
[334507092,1723170648406,-500.0,0.00024288,5]
[334507093,1723170648415,-500.0,0.00024288,5]
[334507094,1723170648426,-500.0,0.00024288,5]
[334507095,1723170648435,-500.0,0.00024288,5]
[334507096,1723170648445,-500.0,0.00024288,5]
[334507097,1723170648454,-500.0,0.00024288,5]
[334507098,1723170648466,-500.0,0.00024288,5]
[334507099,1723170648476,-500.0,0.00024288,5]
[334507100,1723170648486,-1464.05,0.00024288,5]
[334507101,1723170648495,-500.0,0.00024288,5]
[334507102,1723170648505,-615.44472021,0.00024288,5]
[334507103,1723170648514,-500.0,0.00024288,5]
[334507104,1723170648523,-617.17674124,0.00024288,2]
[334507105,1723170648532,-501.1241087,0.00024288,5]
[334507106,1723170648541,-500.0,0.00024288,5]
[334507107,1723170648550,-500.0,0.00024288,5]
[334507108,1723170648560,-501.15289877,0.00024288,5]
[334507109,1723170648569,-500.0,0.00024288,5]
[334507110,1723170648578,-500.0,0.00024288,5]
[334507111,1723170648588,-500.0,0.00024288,5]
[334507112,1723170648597,-500.0,0.00024288,2]
[334507113,1723170648606,-937.15,0.00024288,5]
[334507114,1723170648616,-217.33142931,0.00024288,5]
[334507115,1723170648625,-642.35623763,0.00024288,5]
[334507116,1723170648635,-431.55815608,0.00024288,5]
[334507117,1723170648644,-500.0,0.00024288,5]
[334507118,1723170648653,-557.90336626,0.00024288,5]
[334507119,1723170648662,-167.74319221,0.00024288,5]
[334507120,1723170648671,-500.0,0.00024288,5]
[334507121,1723170648680,-351.20550909,0.00024288,5]
[334507122,1723170648689,-500.0,0.00024288,5]
[334507123,1723170648698,-209.71112007,0.00024297,2]
[334507124,1723170648707,-1000.0,0.00024298,2]
[334507125,1723170648716,-1411.0,0.000243,5]
[334507126,1723170648726,-209.71112005,0.00024348,2]
[334507127,1723170648736,-246.375151,0.00024355,2]
[334507128,1723170648745,-150.0,0.00024373,2]
[334507129,1723170648754,-3266.28,0.00024395,5]
[334507130,1723170648763,-647.67,0.00024395,5]
[334507131,1723170648773,-887.31,0.00024395,5]
[334507132,1723170648782,-500.0,0.00024395,5]
[334507133,1723170648791,-500.0,0.00024395,5]
[334507134,1723170648801,-1896.15,0.00024395,5]
[334507135,1723170648810,-4490.81,0.00024395,5]
[334507136,1723170648818,-19672.22,0.00024395,5]
[334507137,1723170648828,-500.0,0.00024395,5]
[334507138,1723170648837,-6179.83,0.00024395,5]
[334507139,1723170648846,-1075.26,0.00024395,5]
[334507140,1723170648856,-2492.06,0.00024395,5]
[334507141,1723170648865,-1692.29,0.00024395,5]
[334507142,1723170648874,-1321.93,0.00024395,5]
[334507143,1723170648882,-18122.69,0.00024395,5]
[334507144,1723170648890,-500.0,0.00024395,5]
[334507145,1723170648899,-500.0,0.00024395,5]
[334507146,1723170648908,-47273.98751518,0.00024396,9]
[334507147,1723170648917,-1733.44,0.00024396,5]
[334507148,1723170648926,-5618.16,0.00024396,5]
[334507149,1723170648936,-2625.2,0.00024396,5]
[334507150,1723170648946,-6964.81,0.00024396,5]
[334507151,1723170648955,-5593.89,0.00024396,5]
[334507152,1723170648964,-8891.33,0.00024396,5]
[334507153,1723170648974,-1484.69,0.00024396,5]
[334507154,1723170648983,-19278.68,0.00024396,5]
[334507155,1723170648992,-3266.28,0.00024396,5]
[334507156,1723170649002,-19531.05,0.00024396,5]
[334507157,1723170649012,-647.67,0.00024396,5]
[334507158,1723170649021,-3975.48,0.00024396,5]
[334507159,1723170649031,-8954.12,0.00024396,5]
[334507160,1723170649040,-887.31,0.00024396,5]
[334507161,1723170649050,-14406.27,0.00024396,5]
[334507162,1723170649059,-500.0,0.00024396,5]
[334507163,1723170649069,-5687.1,0.00024396,5]
[334507164,1723170649078,-500.0,0.00024396,5]
[334507165,1723170649087,-9551.07,0.00024396,5]
[334507166,1723170649097,-28467.15,0.00024396,5]
[334507167,1723170649106,-5240.17,0.00024396,5]
[334507168,1723170649115,-1896.15,0.00024396,5]
[334507169,1723170649125,-4490.81,0.00024396,5]
[334507170,1723170649134,-2840.81,0.00024396,5]
[334507171,1723170649144,-19672.22,0.00024396,5]
[334507172,1723170649153,-500.0,0.00024396,5]
[334507173,1723170649163,-6179.83,0.00024396,5]
[334507174,1723170649172,-8501.32,0.00024396,5]
[334507175,1723170649182,-4565.42,0.00024396,5]
[334507176,1723170649192,-1075.26,0.00024396,5]
[334507177,1723170649201,-2492.06,0.00024396,5]
[334507178,1723170649210,-1692.29,0.00024396,5]
[334507179,1723170649220,-1321.93,0.00024396,5]
[334507180,1723170649229,-19443.35,0.00024396,5]
[334507181,1723170649238,-18122.69,0.00024396,5]
[334507182,1723170649247,-500.0,0.00024396,5]
[334507183,1723170649257,-500.0,0.00024396,5]
[334507184,1723170649266,-794.61,0.00024397,5]
[334507185,1723170649275,-1523.86,0.00024397,5]
[334507186,1723170649284,-500.0,0.00024397,5]
[334507187,1723170649294,-859.16,0.00024397,5]
[334507188,1723170649303,-500.0,0.00024397,5]
[334507189,1723170649312,-500.0,0.00024397,5]
[334507190,1723170649322,-1432.51,0.00024397,5]
[334507191,1723170649331,-1432.51,0.00024397,5]
[334507192,1723170649341,-2849.52,0.00024397,5]
[334507193,1723170649351,-2849.52,0.00024397,5]
[334507194,1723170649361,-500.0,0.00024397,5]
[334507195,1723170649370,-500.0,0.00024397,5]
[334507196,1723170649382,-2394.21,0.00024397,5]
[334507197,1723170649391,-2394.21,0.00024397,5]
[334507198,1723170649402,-523.71890201,0.00024397,5]
[334507199,1723170649411,-3297.52,0.00024397,5]
[334507200,1723170649422,-3297.52,0.00024397,5]
[334507201,1723170649432,-3418.43,0.00024397,5]
[334507202,1723170649442,-3418.43,0.00024397,5]
[334507203,1723170649450,-1314.08,0.00024397,5]
[334507204,1723170649460,-1314.08,0.00024397,5]
[334507205,1723170649470,-1892.69,0.00024397,5]
[334507206,1723170649479,-1892.69,0.00024397,5]
[334507207,1723170649489,-662.29,0.00024397,5]
[334507208,1723170649498,-662.29,0.00024397,5]
[334507209,1723170649508,-733.95,0.00024397,5]
[334507210,1723170649517,-733.95,0.00024397,5]
[334507211,1723170649528,-1636.03,0.00024397,5]
[334507212,1723170649537,-1636.03,0.00024397,5]
[334507213,1723170649547,-1798.24,0.00024397,5]
[334507214,1723170649556,-1798.24,0.00024397,5]
[334507215,1723170649565,-637.46,0.00024397,5]
[334507216,1723170649575,-2578.67,0.00024397,5]
[334507217,1723170649584,-2578.67,0.00024397,5]
[334507218,1723170649594,-1066.56,0.00024397,5]
[334507219,1723170649603,-1017.31,0.00024397,5]
[334507220,1723170649613,-1017.31,0.00024397,5]
[334507221,1723170649622,-1770.98,0.00024397,5]
[334507222,1723170649632,-2762.02,0.00024397,5]
[334507223,1723170649641,-2762.02,0.00024397,5]
[334507224,1723170649651,-1423.3,0.00024397,5]
[334507225,1723170649660,-2209.42,0.00024397,5]
[334507226,1723170649670,-2209.42,0.00024397,5]
[334507227,1723170649679,-2934.71,0.00024397,5]
[334507228,1723170649688,-634.66143314,0.00024397,5]
[334507229,1723170649698,-500.0,0.00024397,5]
[334507230,1723170649707,-500.0,0.00024397,5]
[334507231,1723170649716,-500.0,0.00024397,5]
[334507232,1723170649726,-1492.11,0.00024397,5]
[334507233,1723170649735,-1487.45,0.00024397,5]
[334507234,1723170649745,-1492.11,0.00024397,5]
[334507235,1723170649754,-2814.7,0.00024397,5]
[334507236,1723170649764,-4768.8,0.00024397,5]
[334507237,1723170649775,-4768.8,0.00024397,5]
[334507238,1723170649784,-1819.97,0.00024397,5]
[334507239,1723170649794,-902.09,0.00024397,5]
[334507240,1723170649803,-902.09,0.00024397,5]
[334507241,1723170649812,-1734.61,0.00024397,5]
[334507242,1723170649822,-3108.58,0.00024397,5]
[334507243,1723170649831,-568.01,0.00024397,5]
[334507244,1723170649841,-568.01,0.00024397,5]
[334507245,1723170649850,-2938.4,0.00024397,5]
[334507246,1723170649860,-2485.2,0.00024397,5]
[334507247,1723170649869,-2485.2,0.00024397,5]
[334507248,1723170649879,-1862.22,0.00024397,5]
[334507249,1723170649889,-500.0,0.00024397,5]
[334507250,1723170649899,-556.49489675,0.00024397,5]
[334507251,1723170649908,-1042.36,0.00024397,5]
[334507252,1723170649918,-2751.43,0.00024397,5]
[334507253,1723170649928,-726.54,0.00024397,5]
[334507254,1723170649937,-726.54,0.00024397,5]
[334507255,1723170649947,-705.34,0.00024397,5]
[334507256,1723170649957,-705.34,0.00024397,5]
[334507257,1723170649966,-4541.84,0.00024397,5]
[334507258,1723170649976,-4541.84,0.00024397,5]
[334507259,1723170649986,-5150.67,0.00024397,5]
[334507260,1723170649996,-5150.67,0.00024397,5]
[334507261,1723170650005,-500.0,0.00024397,5]
[334507262,1723170650015,-500.0,0.00024397,5]
[334507263,1723170650025,-500.0,0.00024397,5]
[334507264,1723170650037,-517.59564171,0.00024397,5]
[334507265,1723170650046,-731.67,0.00024397,5]
[334507266,1723170650056,-731.67,0.00024397,5]
[334507267,1723170650065,-8791.28,0.00024397,5]
[334507268,1723170650075,-500.0,0.00024397,5]
[334507269,1723170650085,-500.0,0.00024397,5]
[334507270,1723170650094,-733.4,0.00024397,5]
[334507271,1723170650104,-733.4,0.00024397,5]
[334507272,1723170650114,-23551.14,0.00024397,5]
[334507273,1723170650123,-1835.96,0.00024397,5]
[334507274,1723170650133,-1835.96,0.00024397,5]
[334507275,1723170650142,-761.87,0.00024397,5]
[334507276,1723170650152,-761.87,0.00024397,5]
[334507277,1723170650161,-2264.02,0.00024397,5]
[334507278,1723170650171,-1528.08,0.00024397,5]
[334507279,1723170650180,-1528.08,0.00024397,5]
[334507280,1723170650191,-713.02,0.00024397,5]
[334507281,1723170650201,-713.02,0.00024397,5]
[334507282,1723170650210,-500.0,0.00024397,5]
[334507283,1723170650220,-500.0,0.00024397,5]
[334507284,1723170650229,-4537.53,0.00024397,5]
[334507285,1723170650239,-4537.53,0.00024397,5]
[334507286,1723170650248,-4783.56,0.00024397,5]
[334507287,1723170650258,-2267.63,0.00024397,5]
[334507288,1723170650269,-2267.63,0.00024397,5]
[334507289,1723170650280,-500.0,0.00024397,5]
[334507290,1723170650289,-500.0,0.00024397,5]
[334507291,1723170650299,-821.23,0.00024397,5]
[334507292,1723170650309,-821.23,0.00024397,5]
[334507293,1723170650320,-736.19,0.00024397,5]
[334507294,1723170650330,-736.19,0.00024397,5]
[334507295,1723170650339,-848.37,0.00024397,5]
[334507296,1723170650349,-848.37,0.00024397,5]
[334507297,1723170650359,-1423.3,0.00024397,5]
[334507298,1723170650369,-2611.94,0.00024397,5]
[334507299,1723170650381,-500.0,0.00024397,5]
[334507300,1723170650391,-500.0,0.00024397,5]
[334507301,1723170650401,-2467.79,0.00024397,5]
[334507302,1723170650410,-500.0,0.00024397,5]
[334507303,1723170650420,-500.0,0.00024397,5]
[334507304,1723170650430,-14746.04,0.00024397,5]
[334507305,1723170650439,-2178.07,0.00024397,5]
[334507306,1723170650449,-5316.05,0.00024397,5]
[334507307,1723170650460,-647.67,0.00024397,5]
[334507308,1723170650469,-1114.76,0.00024397,5]
[334507309,1723170650478,-887.31,0.00024397,5]
[334507310,1723170650488,-2531.5,0.00024397,5]
[334507311,1723170650497,-500.0,0.00024397,5]
[334507312,1723170650506,-4267.61,0.00024397,5]
[334507313,1723170650516,-3935.81,0.00024397,5]
[334507314,1723170650527,-500.0,0.00024397,5]
[334507315,1723170650537,-1676.07,0.00024397,5]
[334507316,1723170650548,-2537.2,0.00024397,5]
[334507317,1723170650558,-1879.01,0.00024397,5]
[334507318,1723170650568,-3396.98,0.00024397,5]
[334507319,1723170650577,-2158.92,0.00024397,5]
[334507320,1723170650587,-5367.26,0.00024397,5]
[334507321,1723170650597,-1636.19,0.00024397,5]
[334507322,1723170650607,-1896.15,0.00024397,5]
[334507323,1723170650618,-3366.11,0.00024397,5]
[334507324,1723170650628,-3854.56,0.00024397,5]
[334507325,1723170650638,-7292.06,0.00024397,5]
[334507326,1723170650648,-19672.22,0.00024397,5]
[334507327,1723170650658,-764.66,0.00024397,5]
[334507328,1723170650668,-500.0,0.00024397,5]
[334507329,1723170650678,-6179.83,0.00024397,5]
[334507330,1723170650687,-9194.03,0.00024397,5]
[334507331,1723170650697,-1075.26,0.00024397,5]
[334507332,1723170650706,-1692.29,0.00024397,5]
[334507333,1723170650716,-1269.81,0.00024397,5]
[334507334,1723170650726,-1321.93,0.00024397,5]
[334507335,1723170650736,-985.71,0.00024397,5]
[334507336,1723170650746,-500.0,0.00024397,5]
[334507337,1723170650755,-500.0,0.00024397,5]
[334507338,1723170650765,-500.0,0.00024398,5]
[334507339,1723170650777,-506.37513774,0.00024398,5]
[334507340,1723170650787,-500.0,0.00024398,5]
[334507341,1723170650797,-505.48465221,0.00024398,5]
[334507342,1723170650808,-274.9355252,0.00024398,5]
[334507343,1723170650818,-500.0,0.00024398,5]
[334507344,1723170650827,-500.0,0.00024398,5]
[334507345,1723170650837,-500.0,0.00024398,5]
[334507346,1723170650847,-500.0,0.00024398,5]
[334507347,1723170650857,-500.0,0.00024398,5]
[334507348,1723170650867,-500.0,0.00024398,5]
[334507349,1723170650876,-500.0,0.00024398,5]
[334507350,1723170650886,-500.0,0.00024398,5]
[334507351,1723170650896,-500.0,0.00024398,5]
[334507352,1723170650905,-500.0,0.00024398,5]
[334507353,1723170650915,-222.52096373,0.00024398,5]
[334507354,1723170650925,-500.0,0.00024398,5]
[334507355,1723170650935,-500.0,0.00024398,5]
[334507356,1723170650945,-500.0,0.00024398,5]
[334507357,1723170650955,-500.0,0.00024398,5]
[334507358,1723170650965,-500.0,0.00024398,5]
[334507359,1723170650975,-622.32736958,0.00024398,5]
[334507360,1723170650985,-500.0,0.00024398,5]
[334507361,1723170650995,-261.82261969,0.00024398,5]
[334507362,1723170651005,-500.0,0.00024398,5]
[334507363,1723170651015,-590.935569,0.00024398,5]
[334507364,1723170651028,-500.69891075,0.00024398,5]
[334507365,1723170651037,-500.0,0.00024398,5]
[334507366,1723170651047,-500.0,0.00024398,5]
[334507367,1723170651058,-500.0,0.00024398,5]
[334507368,1723170651068,-500.0,0.00024398,5]
[334507369,1723170651078,-500.0,0.00024398,5]
[334507370,1723170651088,-500.0,0.00024398,5]
[334507371,1723170651099,-500.0,0.00024398,2]
[334507372,1723170651109,-500.0,0.00024398,5]
[334507373,1723170651119,-500.0,0.00024398,5]
[334507374,1723170651128,-500.0,0.00024398,5]
[334507375,1723170651138,-500.0,0.00024398,5]
[334507376,1723170651148,-500.0,0.00024398,5]
[334507377,1723170651157,-500.0,0.00024398,5]
[334507378,1723170651167,-500.0,0.00024398,5]
[334507379,1723170651178,-500.0,0.00024398,5]
[334507380,1723170651188,-500.0,0.00024398,5]
[334507381,1723170651198,-1464.05,0.00024398,5]
[334507382,1723170651208,-500.0,0.00024398,5]
[334507383,1723170651218,-500.0,0.00024398,5]
[334507384,1723170651229,-500.0,0.00024398,5]
[334507385,1723170651239,-500.0,0.00024398,5]
[334507386,1723170651249,-501.71459466,0.00024398,5]
[334507387,1723170651259,-500.0,0.00024398,5]
[334507388,1723170651270,-616.03727935,0.00024398,5]
[334507389,1723170651280,-500.0,0.00024398,2]
[334507390,1723170651290,-937.15,0.00024398,5]
[334507391,1723170651301,-173.84331221,0.00024398,5]
[334507392,1723170651311,-500.0,0.00024398,5]
[334507393,1723170651321,-500.0,0.00024398,5]
[334507394,1723170651332,-209.71112005,0.00024398,2]
[334507395,1723170651343,-3266.28,0.00024442,5]
[334507396,1723170651353,-4490.81,0.00024442,5]
[334507397,1723170651363,-500.0,0.00024442,5]
[334507398,1723170651373,-2492.06,0.00024442,5]
[334507399,1723170651386,-18122.69,0.00024442,5]
[334507400,1723170651396,-500.0,0.00024443,5]
[334507401,1723170651407,-500.0,0.00024443,5]
[334507402,1723170651417,-552.69,0.00024443,5]
[334507403,1723170651427,-1382.75,0.00024443,5]
[334507404,1723170651437,-500.0,0.00024443,5]
[334507405,1723170651447,-500.0,0.00024443,5]
[334507406,1723170651458,-500.0,0.00024443,5]
[334507407,1723170651468,-500.0,0.00024443,5]
[334507408,1723170651478,-500.0,0.00024443,5]
[334507409,1723170651488,-500.0,0.00024443,5]
[334507410,1723170651498,-500.0,0.00024443,5]
[334507411,1723170651508,-500.0,0.00024443,5]
[334507412,1723170651518,-3915.77,0.00024443,5]
[334507413,1723170651528,-500.0,0.00024443,5]
[334507414,1723170651539,-519.4,0.00024443,5]
[334507415,1723170651549,-500.0,0.00024443,5]
[334507416,1723170651559,-1696.12,0.00024443,5]
[334507417,1723170651569,-500.0,0.00024443,5]
[334507418,1723170651579,-500.0,0.00024443,5]
[334507419,1723170651798,-500.0,0.00024443,5]
[334507420,1723170651812,-1688.39,0.00024443,5]
[334507421,1723170651822,-500.0,0.00024443,5]
[334507422,1723170651832,-500.0,0.00024443,5]
[334507423,1723170651841,-500.0,0.00024443,5]
[334507424,1723170651851,-2255.39,0.00024443,5]
[334507425,1723170651860,-500.0,0.00024443,5]
[334507426,1723170651870,-500.0,0.00024443,5]
[334507427,1723170651879,-500.0,0.00024443,5]
[334507428,1723170651888,-500.0,0.00024443,5]
[334507429,1723170651897,-500.0,0.00024443,5]
[334507430,1723170651907,-500.0,0.00024443,5]
[334507431,1723170651916,-568.47191562,0.00024443,5]
[334507432,1723170651925,-500.0,0.00024443,5]
[334507433,1723170651934,-500.0,0.00024443,5]
[334507434,1723170651944,-500.0,0.00024443,5]
[334507435,1723170651953,-556.03246668,0.00024443,5]
[334507436,1723170651962,-500.0,0.00024443,5]
[334507437,1723170651971,-653.02,0.00024443,5]
[334507438,1723170651980,-500.0,0.00024443,5]
[334507439,1723170651990,-500.0,0.00024443,5]
[334507440,1723170651999,-500.0,0.00024443,5]
[334507441,1723170652010,-500.0,0.00024443,5]
[334507442,1723170652019,-500.0,0.00024443,5]
[334507443,1723170652031,-500.0,0.00024443,5]
[334507444,1723170652042,-500.0,0.00024443,5]
[334507445,1723170652051,-500.0,0.00024443,5]
[334507446,1723170652060,-500.0,0.00024443,5]
[334507447,1723170652070,-500.0,0.00024443,5]
[334507448,1723170652079,-500.0,0.00024443,5]
[334507449,1723170652089,-500.0,0.00024443,5]
[334507450,1723170652098,-500.0,0.00024443,5]
[334507451,1723170652107,-500.0,0.00024443,5]
[334507452,1723170652116,-500.0,0.00024443,5]
[334507453,1723170652126,-504.69883008,0.00024443,5]
[334507454,1723170652135,-501.65358323,0.00024443,5]
[334507455,1723170652146,-500.0,0.00024443,5]
[334507456,1723170652156,-500.0,0.00024443,5]
[334507457,1723170652165,-3931.8,0.00024443,5]
[334507458,1723170652176,-7948.47,0.00024443,5]
[334507459,1723170652185,-500.0,0.00024443,5]
[334507460,1723170652194,-3512.02,0.00024443,5]
[334507461,1723170652204,-1434.81,0.00024443,5]
[334507462,1723170652214,-500.0,0.00024443,5]
[334507463,1723170652223,-3343.34,0.00024443,5]
[334507464,1723170652232,-500.0,0.00024443,5]
[334507465,1723170652241,-500.0,0.00024443,5]
[334507466,1723170652251,-3395.41,0.00024443,5]
[334507467,1723170652260,-1212.01,0.00024443,5]
[334507468,1723170652270,-2606.36,0.00024443,5]
[334507469,1723170652281,-2602.88,0.00024443,5]
[334507470,1723170652290,-1509.86,0.00024443,5]
[334507471,1723170652300,-3197.82,0.00024443,5]
[334507472,1723170652309,-794.61,0.00024444,5]
[334507473,1723170652319,-1523.86,0.00024444,5]
[334507474,1723170652328,-500.0,0.00024444,5]
[334507475,1723170652338,-859.16,0.00024444,5]
[334507476,1723170652347,-502.56989974,0.00024444,5]
[334507477,1723170652356,-500.0,0.00024444,5]
[334507478,1723170652365,-150.0,0.00024473,2]
[334507479,1723170652375,-647.67,0.00024484,5]
[334507480,1723170652389,-887.31,0.00024484,5]
[334507481,1723170652398,-500.0,0.00024484,5]
[334507482,1723170652407,-500.0,0.00024484,5]
[334507483,1723170652417,-1896.15,0.00024484,5]
[334507484,1723170652426,-19672.22,0.00024484,5]
[334507485,1723170652436,-6179.83,0.00024484,5]
[334507486,1723170652445,-1075.26,0.00024484,5]
[334507487,1723170652456,-1692.29,0.00024484,5]
[334507488,1723170652466,-1321.93,0.00024484,5]
[334507489,1723170652475,-500.0,0.00024484,5]
[334507490,1723170652484,-500.0,0.00024484,5]
[334507491,1723170652494,-1733.44,0.00024485,5]
[334507492,1723170652503,-5618.16,0.00024485,5]
[334507493,1723170652513,-2625.2,0.00024485,5]
[334507494,1723170652522,-6964.81,0.00024485,5]
[334507495,1723170652533,-5593.89,0.00024485,5]
[334507496,1723170652542,-8891.33,0.00024485,5]
[334507497,1723170652551,-1484.69,0.00024485,5]
[334507498,1723170652561,-19278.68,0.00024485,5]
[334507499,1723170652572,-3266.28,0.00024485,5]
[334507500,1723170652582,-19531.05,0.00024485,5]
[334507501,1723170652591,-3975.48,0.00024485,5]
[334507502,1723170652600,-8954.12,0.00024485,5]
[334507503,1723170652610,-14406.27,0.00024485,5]
[334507504,1723170652619,-5687.1,0.00024485,5]
[334507505,1723170652629,-9551.07,0.00024485,5]
[334507506,1723170652639,-28467.15,0.00024485,5]
[334507507,1723170652648,-5240.17,0.00024485,5]
[334507508,1723170652657,-4490.81,0.00024485,5]
[334507509,1723170652666,-2840.81,0.00024485,5]
[334507510,1723170652676,-500.0,0.00024485,5]
[334507511,1723170652685,-8501.32,0.00024485,5]
[334507512,1723170652695,-4565.42,0.00024485,5]
[334507513,1723170652705,-2492.06,0.00024485,5]
[334507514,1723170652714,-19443.35,0.00024485,5]
[334507515,1723170652724,-18122.69,0.00024485,5]
[334507516,1723170652734,-1432.51,0.00024486,5]
[334507517,1723170652744,-2849.52,0.00024486,5]
[334507518,1723170652753,-500.0,0.00024486,5]
[334507519,1723170652763,-2394.21,0.00024486,5]
[334507520,1723170652772,-3297.52,0.00024486,5]
[334507521,1723170652782,-3418.43,0.00024486,5]
[334507522,1723170652792,-1314.08,0.00024486,5]
[334507523,1723170652801,-1892.69,0.00024486,5]
[334507524,1723170652811,-662.29,0.00024486,5]
[334507525,1723170652820,-733.95,0.00024486,5]
[334507526,1723170652830,-1636.03,0.00024486,5]
[334507527,1723170652839,-1798.24,0.00024486,5]
[334507528,1723170652848,-637.46,0.00024486,5]
[334507529,1723170652858,-1066.56,0.00024486,5]
[334507530,1723170652868,-2578.67,0.00024486,5]
[334507531,1723170652878,-1017.31,0.00024486,5]
[334507532,1723170652887,-1770.98,0.00024486,5]
[334507533,1723170652896,-2762.02,0.00024486,5]
[334507534,1723170652907,-1423.3,0.00024486,5]
[334507535,1723170652916,-2209.42,0.00024486,5]
[334507536,1723170652925,-2934.71,0.00024486,5]
[334507537,1723170652935,-500.0,0.00024486,5]
[334507538,1723170652945,-500.0,0.00024486,5]
[334507539,1723170652954,-1487.45,0.00024486,5]
[334507540,1723170652964,-1492.11,0.00024486,5]
[334507541,1723170652973,-2814.7,0.00024486,5]